[Event "Titled Tuesday Blitz May 9 Late 2023"]
[White "Rosen, Eric"]
[Black "Liu, Casper"]
[WhiteFideId "2032562"]
[BlackFideId "1454153"]
[WhiteElo "2331"]
[BlackElo "2221"]
[Result "1-0"]
[Round "04"]
[TimeControl "180+2"]
[Date "2023.05.09"]
[WhiteClock "0:00:19"]
[BlackClock "0:00:13"]

1. d4 {[%clk 0:02:58]}  c5 {[%clk 0:02:59]} 2. dxc5 {[%clk 0:02:56]}  e6 {[%clk 0:02:58]} 3. Nc3 {[%clk 0:02:57]}  Bxc5 {[%clk 0:02:58]} 4. Ne4 {[%clk 0:02:57]}  Be7 {[%clk 0:02:58]} 5. Nd6+ {[%clk 0:02:57]}  Bxd6 {[%clk 0:02:58]} 6. Qxd6 {[%clk 0:02:58]}  Nc6 {[%clk 0:02:58]} 7. e4 {[%clk 0:02:52]}  Nge7 {[%clk 0:02:58]} 8. Nf3 {[%clk 0:02:47]}  O-O {[%clk 0:02:58]} 9. Be2 {[%clk 0:02:37]}  Ng6 {[%clk 0:02:58]} 10. O-O {[%clk 0:02:29]}  Qe7 {[%clk 0:02:58]} 11. Qxe7 {[%clk 0:02:30]}  Ncxe7 {[%clk 0:02:59]} 12. h4 {[%clk 0:02:07]}  Nc6 {[%clk 0:02:52]} 13. Rd1 {[%clk 0:01:59]}  f5 {[%clk 0:02:36]} 14. exf5 {[%clk 0:01:52]}  Rxf5 {[%clk 0:02:37]} 15. c4 {[%clk 0:01:43]}  Nce5 {[%clk 0:02:22]} 16. Bg5 {[%clk 0:00:52]}  h6 {[%clk 0:02:16]} 17. Bd8 {[%clk 0:00:39]}  b6 {[%clk 0:02:09]} 18. Nxe5 {[%clk 0:00:31]}  Nxe5 {[%clk 0:02:09]} 19. Bc7 {[%clk 0:00:28]}  Bb7 {[%clk 0:02:05]} 20. Bf1 {[%clk 0:00:18]}  Bc6 {[%clk 0:02:05]} 21. b4 {[%clk 0:00:15]}  d5 {[%clk 0:01:51]} 22. Rac1 {[%clk 0:00:11]}  Raf8 {[%clk 0:01:50]} 23. Bxe5 {[%clk 0:00:09]}  Rxe5 {[%clk 0:01:51]} 24. f3 {[%clk 0:00:06]}  Rh5 {[%clk 0:01:43]} 25. Rd4 {[%clk 0:00:05]}  e5 {[%clk 0:01:43]} 26. Rg4 {[%clk 0:00:03]}  Bd7 {[%clk 0:01:43]} 27. Rg3 {[%clk 0:00:02]}  d4 {[%clk 0:01:34]} 28. c5 {[%clk 0:00:03]}  Be6 {[%clk 0:01:34]} 29. cxb6 {[%clk 0:00:02]}  axb6 {[%clk 0:01:35]} 30. Rc6 {[%clk 0:00:02]}  Bxa2 {[%clk 0:01:32]} 31. Rxb6 {[%clk 0:00:03]}  Rxh4 {[%clk 0:01:32]} 32. Rb7 {[%clk 0:00:03]}  Rf7 {[%clk 0:01:30]} 33. Rb8+ {[%clk 0:00:03]}  Rf8 {[%clk 0:01:28]} 34. Rb7 {[%clk 0:00:03]}  g5 {[%clk 0:01:21]} 35. Re7 {[%clk 0:00:03]}  d3 {[%clk 0:01:07]} 36. Bxd3 {[%clk 0:00:02]}  Rd8 {[%clk 0:01:06]} 37. Be4 {[%clk 0:00:02]}  Rd1+ {[%clk 0:00:52]} 38. Kf2 {[%clk 0:00:02]}  Rhh1 {[%clk 0:00:52]} 39. Rh3 {[%clk 0:00:03]}  Rxh3 {[%clk 0:00:24]} 40. gxh3 {[%clk 0:00:04]}  Rd2+ {[%clk 0:00:24]} 41. Kg3 {[%clk 0:00:04]}  Rb2 {[%clk 0:00:24]} 42. Rb7 {[%clk 0:00:03]}  Be6 {[%clk 0:00:22]} 43. b5 {[%clk 0:00:03]}  h5 {[%clk 0:00:18]} 44. h4 {[%clk 0:00:03]}  g4 {[%clk 0:00:16]} 45. b6 {[%clk 0:00:03]}  Rb3 {[%clk 0:00:09]} 46. Rb8+ {[%clk 0:00:02]}  Kg7 {[%clk 0:00:08]} 47. b7 {[%clk 0:00:03]}  gxf3 {[%clk 0:00:09]} 48. Re8 {[%clk 0:00:02]}  f2+ {[%clk 0:00:01]} 49. Kxf2 {[%clk 0:00:02]}  Rb2+ {[%clk 0:00:02]} 50. Ke3 {[%clk 0:00:02]}  Rb3+ {[%clk 0:00:02]} 51. Kd2 {[%clk 0:00:03]}  Rb2+ {[%clk 0:00:01]} 52. Kc1 {[%clk 0:00:03]}  Rb3 {[%clk 0:00:02]} 53. b8=Q {[%clk 0:00:04]}  Rxb8 {[%clk 0:00:02]} 54. Rxb8 {[%clk 0:00:05]}  Kf6 {[%clk 0:00:03]} 55. Rb6 {[%clk 0:00:05]}  Ke7 {[%clk 0:00:03]} 56. Kd2 {[%clk 0:00:05]}  Kf6 {[%clk 0:00:04]} 57. Ke3 {[%clk 0:00:06]}  Ke7 {[%clk 0:00:04]} 58. Rb7+ {[%clk 0:00:06]}  Kf6 {[%clk 0:00:04]} 59. Ra7 {[%clk 0:00:07]}  Bf7 {[%clk 0:00:04]} 60. Ra6+ {[%clk 0:00:07]}  Be6 {[%clk 0:00:04]} 61. Bd5 {[%clk 0:00:08]}  Kf5 {[%clk 0:00:05]} 62. Bxe6+ {[%clk 0:00:08]}  Kf6 {[%clk 0:00:05]} 63. Bh3+ {[%clk 0:00:08]}  Ke7 {[%clk 0:00:05]} 64. Ke4 {[%clk 0:00:09]}  Kf7 {[%clk 0:00:05]} 65. Kxe5 {[%clk 0:00:09]}  Kg7 {[%clk 0:00:05]} 66. Kf5 {[%clk 0:00:10]}  Kh7 {[%clk 0:00:05]} 67. Kg5 {[%clk 0:00:11]}  Kg7 {[%clk 0:00:06]} 68. Kxh5 {[%clk 0:00:12]}  Kf7 {[%clk 0:00:06]} 69. Bf1 {[%clk 0:00:12]}  Ke7 {[%clk 0:00:07]} 70. Kg4 {[%clk 0:00:13]}  Kd7 {[%clk 0:00:08]} 71. Kg3 {[%clk 0:00:14]}  Kc7 {[%clk 0:00:09]} 72. Kf2 {[%clk 0:00:15]}  Kb7 {[%clk 0:00:10]} 73. Ke3 {[%clk 0:00:16]}  Kc7 {[%clk 0:00:10]} 74. Kf3 {[%clk 0:00:17]}  Kd7 {[%clk 0:00:11]} 75. h5 {[%clk 0:00:17]}  Ke7 {[%clk 0:00:12]} 76. h6 {[%clk 0:00:18]}  Kf7 {[%clk 0:00:13]} 77. Kf4 {[%clk 0:00:19]}  Ke7 {[%clk 0:00:13]} 78. Kf5 {[%clk 0:00:19]}  Kd7 {[%clk 0:00:14]} 79. h7 {[%clk 0:00:19]}  Kc7 {[%clk 0:00:15]} 80. h8=Q {[%clk 0:00:19]}  Kb7 {[%clk 0:00:16]} 81. Qh7+ {[%clk 0:00:19]}  Kb8 {[%clk 0:00:13]} 82. Rg6 {[%clk 0:00:19]} 1-0


[Site "https://www.chess.com"]

[Event "Titled Tuesday Blitz May 9 Late 2023"]
[White "Mazurkiewicz, Michal"]
[Black "Schnaider, Ilan"]
[WhiteFideId "1124943"]
[BlackFideId "169013"]
[WhiteElo "2054"]
[BlackElo "2224"]
[Result "1-0"]
[Round "04"]
[TimeControl "180+2"]
[Date "2023.05.09"]
[WhiteClock "0:01:51"]
[BlackClock "0:00:22"]

1. e4 {[%clk 0:03:00]}  e5 {[%clk 0:03:00]} 2. Nf3 {[%clk 0:03:00]}  Nc6 {[%clk 0:03:00]} 3. Bb5 {[%clk 0:03:00]}  a6 {[%clk 0:03:00]} 4. Bxc6 {[%clk 0:03:01]}  dxc6 {[%clk 0:02:59]} 5. O-O {[%clk 0:03:02]}  Bd6 {[%clk 0:02:52]} 6. d4 {[%clk 0:03:01]}  exd4 {[%clk 0:02:51]} 7. Qxd4 {[%clk 0:03:02]}  f6 {[%clk 0:02:47]} 8. Nbd2 {[%clk 0:03:02]}  Bg4 {[%clk 0:02:44]} 9. e5 {[%clk 0:02:55]}  Bxf3 {[%clk 0:02:36]} 10. exd6 {[%clk 0:02:53]}  Bd5 {[%clk 0:02:34]} 11. Re1+ {[%clk 0:02:49]}  Kf7 {[%clk 0:02:30]} 12. c4 {[%clk 0:02:47]}  Be6 {[%clk 0:02:28]} 13. Ne4 {[%clk 0:02:34]}  b6 {[%clk 0:02:13]} 14. Bf4 {[%clk 0:02:32]}  c5 {[%clk 0:02:09]} 15. Qe3 {[%clk 0:02:25]}  Bd7 {[%clk 0:00:48]} 16. dxc7 {[%clk 0:02:24]}  Qe7 {[%clk 0:00:48]} 17. Nd6+ {[%clk 0:02:07]}  Kf8 {[%clk 0:00:47]} 18. Qf3 {[%clk 0:02:07]}  Ra7 {[%clk 0:00:30]} 19. c8=Q+ {[%clk 0:01:58]}  Bxc8 {[%clk 0:00:29]} 20. Nxc8 {[%clk 0:01:59]}  Qd8 {[%clk 0:00:24]} 21. Nxa7 {[%clk 0:01:53]}  Ne7 {[%clk 0:00:20]} 22. Rad1 {[%clk 0:01:51]}  Qe8 {[%clk 0:00:19]} 23. Bd6 {[%clk 0:01:51]}  Kf7 {[%clk 0:00:19]} 24. Rxe7+ {[%clk 0:01:50]}  Qxe7 {[%clk 0:00:20]} 25. Bxe7 {[%clk 0:01:50]}  Kxe7 {[%clk 0:00:21]} 26. Nc6+ {[%clk 0:01:51]}  Kf7 {[%clk 0:00:22]} 27. Rd7+ {[%clk 0:01:51]}  Ke6 {[%clk 0:00:22]} 28. Qd5# {[%clk 0:01:51]} 1-0


[Site "https://www.chess.com"]

[Event "Titled Tuesday Blitz May 9 Late 2023"]
[White "Lenaerts, Lennert"]
[Black "Balla, Tamas-Kristof"]
[WhiteFideId "211435"]
[BlackFideId "1208497"]
[WhiteElo "2334"]
[BlackElo "2334"]
[Result "1-0"]
[Round "04"]
[TimeControl "180+2"]
[Date "2023.05.09"]
[WhiteClock "0:00:46"]
[BlackClock "0:00:07"]

1. d4 {[%clk 0:02:59]}  d5 {[%clk 0:02:57]} 2. c4 {[%clk 0:03:00]}  dxc4 {[%clk 0:02:57]} 3. Nf3 {[%clk 0:02:59]}  Nf6 {[%clk 0:02:56]} 4. e3 {[%clk 0:03:00]}  e6 {[%clk 0:02:56]} 5. Bxc4 {[%clk 0:03:00]}  c5 {[%clk 0:02:57]} 6. O-O {[%clk 0:02:59]}  a6 {[%clk 0:02:50]} 7. a3 {[%clk 0:02:54]}  b5 {[%clk 0:02:49]} 8. Be2 {[%clk 0:02:54]}  Bb7 {[%clk 0:02:49]} 9. dxc5 {[%clk 0:02:54]}  Qxd1 {[%clk 0:02:45]} 10. Rxd1 {[%clk 0:02:55]}  Bxc5 {[%clk 0:02:40]} 11. b4 {[%clk 0:02:55]}  Be7 {[%clk 0:02:39]} 12. Bb2 {[%clk 0:02:55]}  Nbd7 {[%clk 0:02:32]} 13. Nbd2 {[%clk 0:02:56]}  O-O {[%clk 0:02:30]} 14. Nb3 {[%clk 0:02:55]}  Bd5 {[%clk 0:02:22]} 15. Na5 {[%clk 0:02:54]}  Rfc8 {[%clk 0:02:14]} 16. Nd4 {[%clk 0:02:48]}  Nb6 {[%clk 0:02:09]} 17. Rac1 {[%clk 0:02:44]}  Na4 {[%clk 0:02:01]} 18. Ba1 {[%clk 0:02:41]}  Ne4 {[%clk 0:01:34]} 19. Ndc6 {[%clk 0:02:39]}  Bd8 {[%clk 0:01:21]} 20. Nxd8 {[%clk 0:02:18]}  Rxd8 {[%clk 0:01:19]} 21. f3 {[%clk 0:02:18]}  Nf6 {[%clk 0:01:02]} 22. e4 {[%clk 0:02:15]}  Ba2 {[%clk 0:01:02]} 23. Nc6 {[%clk 0:01:41]}  Rxd1+ {[%clk 0:00:52]} 24. Rxd1 {[%clk 0:01:42]}  Nb6 {[%clk 0:00:51]} 25. Kf2 {[%clk 0:01:16]}  Bc4 {[%clk 0:00:50]} 26. Na5 {[%clk 0:01:09]}  Bxe2 {[%clk 0:00:48]} 27. Kxe2 {[%clk 0:01:10]}  Nfd7 {[%clk 0:00:46]} 28. Rd6 {[%clk 0:01:07]}  Rc8 {[%clk 0:00:25]} 29. Bd4 {[%clk 0:01:06]}  Rb8 {[%clk 0:00:20]} 30. Nc6 {[%clk 0:01:01]}  Rb7 {[%clk 0:00:16]} 31. Ne5 {[%clk 0:01:01]}  f6 {[%clk 0:00:13]} 32. Nxd7 {[%clk 0:00:54]}  Rxd7 {[%clk 0:00:12]} 33. Rxe6 {[%clk 0:00:52]}  Rxd4 {[%clk 0:00:10]} 34. Rxb6 {[%clk 0:00:52]}  a5 {[%clk 0:00:11]} 35. Rxb5 {[%clk 0:00:50]}  axb4 {[%clk 0:00:10]} 36. Rxb4 {[%clk 0:00:49]}  Rd6 {[%clk 0:00:11]} 37. a4 {[%clk 0:00:49]}  Kf7 {[%clk 0:00:10]} 38. a5 {[%clk 0:00:48]}  Rc6 {[%clk 0:00:09]} 39. Ra4 {[%clk 0:00:47]}  Rc2+ {[%clk 0:00:07]} 40. Kd3 {[%clk 0:00:46]} 1-0


[Site "https://www.chess.com"]

[Event "Titled Tuesday Blitz May 9 Late 2023"]
[White "Pavlidou, Ekaterini"]
[Black "Piesik, Piotr"]
[WhiteFideId "4213262"]
[BlackFideId "1136194"]
[WhiteElo "2126"]
[BlackElo "2299"]
[Result "1-0"]
[Round "04"]
[TimeControl "180+2"]
[Date "2023.05.09"]
[WhiteClock "0:01:18"]
[BlackClock "0:02:01"]

1. d4 {[%clk 0:03:00]}  c5 {[%clk 0:02:50]} 2. d5 {[%clk 0:03:00]}  e5 {[%clk 0:02:50]} 3. c4 {[%clk 0:03:00]}  d6 {[%clk 0:02:50]} 4. Nc3 {[%clk 0:03:00]}  Be7 {[%clk 0:02:51]} 5. e4 {[%clk 0:03:00]}  Bg5 {[%clk 0:02:50]} 6. h4 {[%clk 0:03:00]}  Bxh4 {[%clk 0:02:49]} 7. g3 {[%clk 0:02:42]}  Bg5 {[%clk 0:02:47]} 8. f4 {[%clk 0:02:42]}  exf4 {[%clk 0:02:46]} 9. gxf4 {[%clk 0:02:42]}  Bh4+ {[%clk 0:02:46]} 10. Kd2 {[%clk 0:02:42]}  f5 {[%clk 0:02:44]} 11. Qh5+ {[%clk 0:02:40]}  g6 {[%clk 0:02:42]} 12. Qxh4 {[%clk 0:02:40]}  Nf6 {[%clk 0:02:42]} 13. e5 {[%clk 0:02:35]}  dxe5 {[%clk 0:02:41]} 14. fxe5 {[%clk 0:02:35]}  Ng4 {[%clk 0:02:40]} 15. Qxd8+ {[%clk 0:02:28]}  Kxd8 {[%clk 0:02:41]} 16. Nf3 {[%clk 0:02:23]}  Nd7 {[%clk 0:02:40]} 17. e6 {[%clk 0:02:18]}  Nde5 {[%clk 0:02:36]} 18. Nxe5 {[%clk 0:02:17]}  Nxe5 {[%clk 0:02:37]} 19. Kc2 {[%clk 0:02:07]}  Nf3 {[%clk 0:02:37]} 20. Nb5 {[%clk 0:01:56]}  a6 {[%clk 0:02:30]} 21. Bg2 {[%clk 0:01:45]}  axb5 {[%clk 0:02:18]} 22. Bxf3 {[%clk 0:01:44]}  bxc4 {[%clk 0:02:18]} 23. Bg5+ {[%clk 0:01:41]}  Kc7 {[%clk 0:02:17]} 24. Bf6 {[%clk 0:01:41]}  Rf8 {[%clk 0:02:16]} 25. Rxh7+ {[%clk 0:01:40]}  Kb6 {[%clk 0:02:16]} 26. Be7 {[%clk 0:01:36]}  Re8 {[%clk 0:02:16]} 27. Re1 {[%clk 0:01:22]}  g5 {[%clk 0:02:01]} 28. Bh5 {[%clk 0:01:18]} 1-0


[Site "https://www.chess.com"]

[Event "Titled Tuesday Blitz May 9 Late 2023"]
[White "6PackPlayer"]
[Black "Ladan, Nicholas"]
[BlackFideId "30918855"]
[WhiteElo "2263"]
[BlackElo "2167"]
[Result "0-1"]
[Round "04"]
[TimeControl "180+2"]
[Date "2023.05.09"]
[WhiteClock "0:00:02"]
[BlackClock "0:00:09"]

1. e4 {[%clk 0:03:00]}  e5 {[%clk 0:03:00]} 2. Nf3 {[%clk 0:03:00]}  Nc6 {[%clk 0:03:00]} 3. d4 {[%clk 0:02:59]}  exd4 {[%clk 0:03:00]} 4. Bc4 {[%clk 0:03:00]}  Nf6 {[%clk 0:03:00]} 5. e5 {[%clk 0:03:00]}  d5 {[%clk 0:03:00]} 6. Bb5 {[%clk 0:03:00]}  Ne4 {[%clk 0:03:01]} 7. Nxd4 {[%clk 0:03:00]}  Bc5 {[%clk 0:03:01]} 8. O-O {[%clk 0:02:59]}  Bd7 {[%clk 0:02:53]} 9. Bxc6 {[%clk 0:02:58]}  bxc6 {[%clk 0:02:54]} 10. f3 {[%clk 0:02:58]}  Ng5 {[%clk 0:02:51]} 11. Be3 {[%clk 0:02:59]}  O-O {[%clk 0:02:44]} 12. f4 {[%clk 0:02:59]}  Ne4 {[%clk 0:02:43]} 13. Nd2 {[%clk 0:02:59]}  Rb8 {[%clk 0:02:13]} 14. Nxe4 {[%clk 0:02:29]}  dxe4 {[%clk 0:02:11]} 15. Qc1 {[%clk 0:02:24]}  Bg4 {[%clk 0:01:59]} 16. Nb3 {[%clk 0:02:14]}  Bb6 {[%clk 0:01:30]} 17. Qe1 {[%clk 0:01:53]}  Qe7 {[%clk 0:01:17]} 18. Bxb6 {[%clk 0:01:40]}  axb6 {[%clk 0:01:17]} 19. Qg3 {[%clk 0:01:40]}  Be6 {[%clk 0:01:08]} 20. f5 {[%clk 0:01:36]}  Bxb3 {[%clk 0:01:08]} 21. f6 {[%clk 0:01:16]}  Qc5+ {[%clk 0:01:09]} 22. Kh1 {[%clk 0:01:15]}  g6 {[%clk 0:01:09]} 23. Qg5 {[%clk 0:00:59]}  Rfe8 {[%clk 0:01:07]} 24. cxb3 {[%clk 0:00:23]}  Rxe5 {[%clk 0:01:07]} 25. Qh4 {[%clk 0:00:22]}  e3 {[%clk 0:00:57]} 26. Rac1 {[%clk 0:00:21]}  Qd6 {[%clk 0:00:34]} 27. Rxc6 {[%clk 0:00:21]}  e2 {[%clk 0:00:27]} 28. Re1 {[%clk 0:00:04]}  Qxc6 {[%clk 0:00:10]} 29. Qh6 {[%clk 0:00:04]}  Qxf6 {[%clk 0:00:11]} 30. h3 {[%clk 0:00:02]}  Qf1+ {[%clk 0:00:09]} 0-1


[Site "https://www.chess.com"]

[Event "Titled Tuesday Blitz May 9 Late 2023"]
[White "Demchenko, Anton"]
[Black "Roman, Rodrigo"]
[WhiteFideId "4160258"]
[BlackFideId "3701220"]
[WhiteElo "2545"]
[BlackElo "1995"]
[Result "1-0"]
[Round "04"]
[TimeControl "180+2"]
[Date "2023.05.09"]
[WhiteClock "0:00:15"]
[BlackClock "0:00:29"]

1. e4 {[%clk 0:02:57]}  c5 {[%clk 0:02:50]} 2. Nf3 {[%clk 0:02:56]}  Nc6 {[%clk 0:02:50]} 3. Bb5 {[%clk 0:02:55]}  g6 {[%clk 0:02:50]} 4. O-O {[%clk 0:02:52]}  Bg7 {[%clk 0:02:50]} 5. d3 {[%clk 0:02:53]}  e5 {[%clk 0:02:50]} 6. a3 {[%clk 0:02:52]}  Nge7 {[%clk 0:02:49]} 7. b4 {[%clk 0:02:52]}  d6 {[%clk 0:02:46]} 8. Bg5 {[%clk 0:02:51]}  f6 {[%clk 0:02:45]} 9. Be3 {[%clk 0:02:52]}  b6 {[%clk 0:02:44]} 10. Bc4 {[%clk 0:02:51]}  d5 {[%clk 0:02:35]} 11. exd5 {[%clk 0:02:48]}  Nxd5 {[%clk 0:02:36]} 12. bxc5 {[%clk 0:02:47]}  Nxe3 {[%clk 0:02:35]} 13. fxe3 {[%clk 0:02:48]}  bxc5 {[%clk 0:02:35]} 14. Nc3 {[%clk 0:02:40]}  Ne7 {[%clk 0:02:06]} 15. Qb1 {[%clk 0:02:13]}  Nf5 {[%clk 0:01:52]} 16. Bd5 {[%clk 0:01:49]}  Bd7 {[%clk 0:01:18]} 17. Bxa8 {[%clk 0:01:48]}  Qxa8 {[%clk 0:01:19]} 18. e4 {[%clk 0:01:49]}  Nd4 {[%clk 0:01:18]} 19. Nd5 {[%clk 0:01:38]}  O-O {[%clk 0:01:15]} 20. c3 {[%clk 0:01:36]}  Nxf3+ {[%clk 0:01:11]} 21. Rxf3 {[%clk 0:01:36]}  Rb8 {[%clk 0:01:06]} 22. Qa2 {[%clk 0:01:34]}  Kh8 {[%clk 0:01:03]} 23. Nxf6 {[%clk 0:01:32]}  Ba4 {[%clk 0:00:58]} 24. Raf1 {[%clk 0:01:28]}  Qc6 {[%clk 0:00:52]} 25. Qf2 {[%clk 0:01:21]}  c4 {[%clk 0:00:51]} 26. dxc4 {[%clk 0:01:01]}  Qxc4 {[%clk 0:00:46]} 27. Qh4 {[%clk 0:00:56]}  h6 {[%clk 0:00:34]} 28. Qg3 {[%clk 0:00:48]}  Qc5+ {[%clk 0:00:18]} 29. Kh1 {[%clk 0:00:48]}  g5 {[%clk 0:00:16]} 30. h4 {[%clk 0:00:40]}  Bb5 {[%clk 0:00:13]} 31. Rb1 {[%clk 0:00:33]}  Rf8 {[%clk 0:00:11]} 32. hxg5 {[%clk 0:00:32]}  Be2 {[%clk 0:00:11]} 33. Rf5 {[%clk 0:00:29]}  Qd6 {[%clk 0:00:07]} 34. Re1 {[%clk 0:00:24]}  Bc4 {[%clk 0:00:05]} 35. Nh5 {[%clk 0:00:20]}  Rg8 {[%clk 0:00:04]} 36. Nxg7 {[%clk 0:00:17]}  Rxg7 {[%clk 0:00:04]} 37. Qxe5 {[%clk 0:00:18]}  Qxe5 {[%clk 0:00:04]} 38. Rxe5 {[%clk 0:00:18]}  hxg5 {[%clk 0:00:04]} 39. Rc5 {[%clk 0:00:18]}  Bd3 {[%clk 0:00:05]} 40. Kg1 {[%clk 0:00:17]}  Re7 {[%clk 0:00:05]} 41. Rxg5 {[%clk 0:00:15]}  a6 {[%clk 0:00:04]} 42. Rg3 {[%clk 0:00:15]}  Bc4 {[%clk 0:00:04]} 43. Kf2 {[%clk 0:00:15]}  Bg8 {[%clk 0:00:04]} 44. Ke3 {[%clk 0:00:14]}  Bh7 {[%clk 0:00:05]} 45. Rg4 {[%clk 0:00:14]}  Rc7 {[%clk 0:00:05]} 46. Kd3 {[%clk 0:00:13]}  Rd7+ {[%clk 0:00:05]} 47. Kc2 {[%clk 0:00:13]}  Re7 {[%clk 0:00:06]} 48. Re3 {[%clk 0:00:13]}  Bf5 {[%clk 0:00:05]} 49. Rf4 {[%clk 0:00:12]}  Bg6 {[%clk 0:00:04]} 50. c4 {[%clk 0:00:12]}  Kg7 {[%clk 0:00:05]} 51. Kc3 {[%clk 0:00:12]}  a5 {[%clk 0:00:03]} 52. e5 {[%clk 0:00:12]}  Re6 {[%clk 0:00:02]} 53. Rd4 {[%clk 0:00:11]}  Rc6 {[%clk 0:00:03]} 54. Rd6 {[%clk 0:00:11]}  Rc5 {[%clk 0:00:04]} 55. Rg3 {[%clk 0:00:11]}  Rxe5 {[%clk 0:00:03]} 56. Rdxg6+ {[%clk 0:00:10]}  Kf7 {[%clk 0:00:04]} 57. R6g5 {[%clk 0:00:09]}  Re1 {[%clk 0:00:03]} 58. Rxa5 {[%clk 0:00:09]}  Rc1+ {[%clk 0:00:03]} 59. Kb3 {[%clk 0:00:09]}  Rb1+ {[%clk 0:00:04]} 60. Kc2 {[%clk 0:00:09]}  Re1 {[%clk 0:00:05]} 61. Rd5 {[%clk 0:00:08]}  Ke6 {[%clk 0:00:04]} 62. a4 {[%clk 0:00:08]}  Ra1 {[%clk 0:00:04]} 63. a5 {[%clk 0:00:08]}  Ra2+ {[%clk 0:00:03]} 64. Kb3 {[%clk 0:00:09]}  Ra1 {[%clk 0:00:04]} 65. Re3+ {[%clk 0:00:07]}  Kf6 {[%clk 0:00:04]} 66. Kb4 {[%clk 0:00:06]}  Kf7 {[%clk 0:00:03]} 67. Kb5 {[%clk 0:00:06]}  Rb1+ {[%clk 0:00:03]} 68. Kc6 {[%clk 0:00:06]}  Rc1 {[%clk 0:00:03]} 69. c5 {[%clk 0:00:06]}  Ra1 {[%clk 0:00:03]} 70. Kb6 {[%clk 0:00:06]}  Rb1+ {[%clk 0:00:02]} 71. Ka6 {[%clk 0:00:06]}  Rc1 {[%clk 0:00:03]} 72. Rf5+ {[%clk 0:00:06]}  Kg6 {[%clk 0:00:03]} 73. Ref3 {[%clk 0:00:06]}  Rb1 {[%clk 0:00:02]} 74. c6 {[%clk 0:00:06]}  Rc1 {[%clk 0:00:03]} 75. Kb7 {[%clk 0:00:06]}  Rb1+ {[%clk 0:00:03]} 76. Kc8 {[%clk 0:00:07]}  Ra1 {[%clk 0:00:04]} 77. c7 {[%clk 0:00:07]}  Rxa5 {[%clk 0:00:04]} 78. Rxa5 {[%clk 0:00:07]}  Kg7 {[%clk 0:00:05]} 79. Raf5 {[%clk 0:00:07]}  Kh6 {[%clk 0:00:05]} 80. R5f4 {[%clk 0:00:07]}  Kg5 {[%clk 0:00:06]} 81. Kb7 {[%clk 0:00:08]}  Kh5 {[%clk 0:00:06]} 82. Kc6 {[%clk 0:00:09]}  Kg5 {[%clk 0:00:06]} 83. Kc5 {[%clk 0:00:10]}  Kh5 {[%clk 0:00:07]} 84. Kd4 {[%clk 0:00:10]}  Kg5 {[%clk 0:00:08]} 85. Ke3 {[%clk 0:00:11]}  Kh5 {[%clk 0:00:09]} 86. Kf2 {[%clk 0:00:12]}  Kg5 {[%clk 0:00:09]} 87. c8=Q {[%clk 0:00:13]}  Kh6 {[%clk 0:00:09]} 88. Qc3 {[%clk 0:00:14]}  Kg5 {[%clk 0:00:10]} 89. g4 {[%clk 0:00:14]}  Kh4 {[%clk 0:00:09]} 90. Rh3+ {[%clk 0:00:13]}  Kg5 {[%clk 0:00:07]} 91. Rc4 {[%clk 0:00:13]}  Kg6 {[%clk 0:00:07]} 92. Rg3 {[%clk 0:00:14]}  Kg5 {[%clk 0:00:08]} 93. Qf3 {[%clk 0:00:13]}  Kh4 {[%clk 0:00:08]} 94. Rh3+ {[%clk 0:00:12]}  Kg5 {[%clk 0:00:08]} 95. Rh2 {[%clk 0:00:12]}  Kg6 {[%clk 0:00:09]} 96. Qf4 {[%clk 0:00:13]}  Kg7 {[%clk 0:00:09]} 97. g5 {[%clk 0:00:13]}  Kg6 {[%clk 0:00:10]} 98. Qh4 {[%clk 0:00:13]}  Kf5 {[%clk 0:00:10]} 99. Rg4 {[%clk 0:00:13]}  Ke5 {[%clk 0:00:11]} 100. Qh5 {[%clk 0:00:13]}  Kf5 {[%clk 0:00:11]} 101. g6+ {[%clk 0:00:13]}  Kf6 {[%clk 0:00:11]} 102. g7 {[%clk 0:00:13]}  Ke7 {[%clk 0:00:11]} 103. g8=Q {[%clk 0:00:13]}  Kf6 {[%clk 0:00:12]} 104. Qa2 {[%clk 0:00:13]}  Ke7 {[%clk 0:00:12]} 105. Qh3 {[%clk 0:00:14]}  Kf6 {[%clk 0:00:12]} 106. Qf3+ {[%clk 0:00:14]}  Ke5 {[%clk 0:00:13]} 107. Qae2+ {[%clk 0:00:14]}  Kd6 {[%clk 0:00:13]} 108. Kg3 {[%clk 0:00:15]}  Kc5 {[%clk 0:00:14]} 109. Kh4 {[%clk 0:00:16]}  Kd6 {[%clk 0:00:15]} 110. Kg5 {[%clk 0:00:17]}  Kc5 {[%clk 0:00:16]} 111. Rh1 {[%clk 0:00:17]}  Kd6 {[%clk 0:00:17]} 112. Rd1+ {[%clk 0:00:18]}  Kc5 {[%clk 0:00:17]} 113. Rf4 {[%clk 0:00:17]}  Kb6 {[%clk 0:00:18]} 114. Re4 {[%clk 0:00:18]}  Kc5 {[%clk 0:00:19]} 115. Red4 {[%clk 0:00:18]}  Kb6 {[%clk 0:00:20]} 116. Qfe3 {[%clk 0:00:18]}  Kc5 {[%clk 0:00:21]} 117. Q2d3 {[%clk 0:00:18]}  Kc6 {[%clk 0:00:22]} 118. Qed2 {[%clk 0:00:18]}  Kc5 {[%clk 0:00:23]} 119. Kf4 {[%clk 0:00:18]}  Kb6 {[%clk 0:00:23]} 120. Ke5 {[%clk 0:00:18]}  Kc5 {[%clk 0:00:24]} 121. Ke6 {[%clk 0:00:18]}  Kb6 {[%clk 0:00:25]} 122. Kd5 {[%clk 0:00:18]}  Kc7 {[%clk 0:00:25]} 123. Qc4+ {[%clk 0:00:17]}  Kd7 {[%clk 0:00:26]} 124. Qdb4 {[%clk 0:00:16]}  Ke8 {[%clk 0:00:26]} 125. R1d3 {[%clk 0:00:16]}  Kf7 {[%clk 0:00:27]} 126. Re3 {[%clk 0:00:16]}  Kg6 {[%clk 0:00:28]} 127. Rf4 {[%clk 0:00:15]}  Kg5 {[%clk 0:00:29]} 128. Rg3+ {[%clk 0:00:15]}  Kh5 {[%clk 0:00:29]} 129. Rh4# {[%clk 0:00:15]} 1-0


[Site "https://www.chess.com"]

[Event "Titled Tuesday Blitz May 9 Late 2023"]
[White "Omranalhosani21"]
[Black "Seletsky, Grigory"]
[BlackFideId "14112191"]
[WhiteElo "2609"]
[BlackElo "2491"]
[Result "1-0"]
[Round "04"]
[TimeControl "180+2"]
[Date "2023.05.09"]
[WhiteClock "0:01:40"]
[BlackClock "0:01:50"]

1. d4 {[%clk 0:03:00]}  d6 {[%clk 0:02:58]} 2. e4 {[%clk 0:02:59]}  Nf6 {[%clk 0:02:57]} 3. Nc3 {[%clk 0:02:59]}  e5 {[%clk 0:02:57]} 4. Nf3 {[%clk 0:02:59]}  Nbd7 {[%clk 0:02:56]} 5. Be2 {[%clk 0:02:59]}  Be7 {[%clk 0:02:56]} 6. O-O {[%clk 0:03:00]}  O-O {[%clk 0:02:56]} 7. Re1 {[%clk 0:03:00]}  c6 {[%clk 0:02:57]} 8. a4 {[%clk 0:03:00]}  a5 {[%clk 0:02:56]} 9. Bc4 {[%clk 0:02:59]}  Qc7 {[%clk 0:02:54]} 10. h3 {[%clk 0:02:57]}  h6 {[%clk 0:02:54]} 11. Qe2 {[%clk 0:02:53]}  Re8 {[%clk 0:02:54]} 12. Ba2 {[%clk 0:02:49]}  Nf8 {[%clk 0:02:54]} 13. Be3 {[%clk 0:02:46]}  Ng6 {[%clk 0:02:47]} 14. Rad1 {[%clk 0:02:45]}  Bf8 {[%clk 0:02:34]} 15. Qc4 {[%clk 0:02:32]}  Be6 {[%clk 0:02:33]} 16. d5 {[%clk 0:02:29]}  Bd7 {[%clk 0:02:33]} 17. Nd2 {[%clk 0:02:20]}  Nh5 {[%clk 0:02:25]} 18. Nb5 {[%clk 0:02:15]}  Qd8 {[%clk 0:02:10]} 19. dxc6 {[%clk 0:01:52]}  Be6 {[%clk 0:02:09]} 20. c7 {[%clk 0:01:50]}  Qd7 {[%clk 0:02:06]} 21. Qc3 {[%clk 0:01:50]}  Bxa2 {[%clk 0:02:05]} 22. b3 {[%clk 0:01:50]}  Nhf4 {[%clk 0:02:00]} 23. Bxf4 {[%clk 0:01:40]}  Nxf4 {[%clk 0:01:59]} 24. Nc4 {[%clk 0:01:40]}  Qxc7 {[%clk 0:01:50]} 25. Nxc7 {[%clk 0:01:40]} 1-0


[Site "https://www.chess.com"]